fUST/lending_fUST_20250614
["ID","MTS","AMOUNT","RATE_DAILY","PERIOD"]
[365782700,1749910243363,-460.0,0.00022191,4]
[365782702,1749910243372,-561.83,0.00022191,4]
[365782703,1749910243381,-460.0,0.00022191,4]
[365782704,1749910243392,-460.0,0.00022191,4]
[365782705,1749910243402,-460.0,0.00022191,4]
[365782706,1749910243411,-460.0,0.00022191,4]
[365782707,1749910243421,-2807.41,0.00022191,4]
[365782708,1749910243430,-460.0,0.00022191,4]
[365782709,1749910243439,-460.0,0.00022191,4]
[365782710,1749910243449,-460.0,0.00022191,4]
[365782711,1749910243458,-868.83,0.00022191,4]
[365782712,1749910243468,-460.0,0.00022191,4]
[365782713,1749910243477,-460.0,0.00022191,4]
[365782714,1749910243487,-460.0,0.00022191,4]
[365782715,1749910243498,-460.0,0.00022191,4]
[365782716,1749910243507,-460.0,0.00022191,4]
[365782717,1749910243516,-460.0,0.00022191,4]
[365782718,1749910243526,-440.0,0.00022191,4]
[365782719,1749910243536,-2467.04,0.00022191,4]
[365782720,1749910243545,-460.0,0.00022191,4]
[365782721,1749910243555,-460.0,0.00022191,4]
[365782722,1749910243565,-1226.2,0.00022191,4]
[365782723,1749910243574,-460.0,0.00022191,4]
[365782724,1749910243583,-460.0,0.00022191,4]
[365782725,1749910243593,-2106.91,0.00022191,4]
[365782726,1749910243602,-561.23567481,0.00022191,4]
[365782727,1749910243612,-460.0,0.00022191,4]
[365782728,1749910243622,-460.0,0.00022191,4]
[365782729,1749910243631,-270.0,0.00022191,4]
[365782730,1749910243641,-460.0,0.00022191,4]
[365782731,1749910243651,-460.0,0.00022191,4]
[365782732,1749910243660,-460.0,0.00022191,4]
[365782733,1749910243670,-460.0,0.00022191,4]
[365782734,1749910243679,-477.79,0.00022191,4]
[365782735,1749910243689,-1996.77,0.00022191,4]
[365782736,1749910243699,-597.27772423,0.00022191,4]
[365782737,1749910243708,-460.0,0.00022191,4]
[365782738,1749910243717,-460.0,0.00022191,4]
[365782739,1749910243727,-557.69334001,0.00022191,4]
[365782740,1749910243736,-460.0,0.00022191,4]
[365782741,1749910243746,-460.0,0.00022191,4]
[365782742,1749910243760,-420.0,0.00022191,4]
[365782743,1749910243769,-3628.01,0.00022191,4]
[365782744,1749910243779,-460.0,0.00022191,4]
[365782745,1749910243788,-460.0,0.00022191,2]
[365782746,1749910243798,-460.0,0.00022191,4]
[365782747,1749910243808,-460.0,0.00022191,4]
[365782748,1749910243817,-310.8206644,0.00022191,4]
[365782749,1749910243827,-460.0,0.00022191,4]
[365782750,1749910243836,-460.0,0.00022191,4]
[365782751,1749910243845,-3294.11,0.00022191,4]
[365782752,1749910243855,-460.0,0.00022191,4]
[365782753,1749910243864,-700.42,0.00022191,4]
[365782754,1749910243874,-1234.47,0.00022191,4]
[365782755,1749910243883,-360.03618205,0.00022191,4]
[365782756,1749910243892,-460.0,0.00022191,4]
[365782757,1749910243902,-460.0,0.00022191,4]
[365782758,1749910243911,-615.07,0.00022191,4]
[365782759,1749910243922,-460.0,0.00022191,4]
[365782760,1749910243932,-460.0,0.00022191,4]
[365782761,1749910243942,-980.96,0.00022191,4]
[365782762,1749910243951,-460.0,0.00022191,4]
[365782763,1749910243961,-460.0,0.00022191,4]
[365782764,1749910243970,-460.0,0.00022191,4]
[365782765,1749910243980,-1829.51,0.00022191,4]
[365782766,1749910243990,-460.0,0.00022191,4]
[365782767,1749910243999,-460.0,0.00022191,4]
[365782768,1749910244008,-410.44351872,0.00022191,4]
[365782769,1749910244018,-460.0,0.00022191,4]
[365782770,1749910244027,-1467.6,0.00022191,4]
[365782771,1749910244036,-460.0,0.00022191,4]
[365782772,1749910244046,-2528.24,0.00022191,4]
[365782773,1749910244056,-460.0,0.00022191,4]
[365782774,1749910244066,-460.0,0.00022191,4]
[365782775,1749910244075,-460.0,0.00022191,4]
[365782776,1749910244085,-460.0,0.00022191,4]
[365782777,1749910244095,-460.0,0.00022191,4]
[365782778,1749910244104,-529.83501143,0.0002221,6]
[365782779,1749910244114,-1680.0,0.00022214,2]
[365782780,1749910244123,-1561.81895775,0.00022263,2]
[365782781,1749910244133,-529.83501143,0.00022314,7]
[365782782,1749910244142,-529.83501143,0.00022417,7]
[365782783,1749910244151,-460.0,0.00022465,4]
[365782784,1749910244161,-310.0,0.00022465,4]
[365782785,1749910244170,-460.0,0.00022465,4]
[365782786,1749910244179,-460.0,0.00022465,4]
[365782787,1749910244188,-450.94337842,0.00022465,4]
[365782788,1749910244199,-460.0,0.00022465,4]
[365782789,1749910244209,-460.0,0.00022465,4]
[365782790,1749910244218,-474.19479833,0.00022465,4]
[365782791,1749910244228,-439.51490891,0.00022465,4]
[365782792,1749910244238,-984.78,0.00022465,4]
[365782793,1749910244247,-460.0,0.00022465,4]
[365782794,1749910244256,-460.0,0.00022465,4]
[365782795,1749910244266,-406.00295182,0.00022465,4]
[365782796,1749910244277,-460.0,0.00022465,4]
[365782797,1749910244287,-460.0,0.00022465,4]
[365782798,1749910244296,-460.0,0.00022465,4]
[365782799,1749910244306,-460.0,0.00022465,4]
[365782800,1749910244315,-460.0,0.00022465,4]
[365782801,1749910244326,-460.0,0.00022465,4]
[365782802,1749910244336,-460.0,0.00022465,4]
[365782803,1749910244455,-460.0,0.00022465,4]
[365782804,1749910244465,-460.0,0.00022465,4]
[365782805,1749910244476,-460.0,0.00022465,4]
[365782806,1749910244487,-540.0,0.00022465,4]
[365782807,1749910244496,-460.0,0.00022465,4]
[365782808,1749910244506,-460.0,0.00022465,4]
[365782809,1749910244516,-460.0,0.00022465,4]
[365782810,1749910244525,-460.0,0.00022465,4]
[365782811,1749910244534,-460.0,0.00022465,4]
[365782812,1749910244544,-156.89084586,0.00022465,4]
[365782813,1749910244553,-719.31,0.00022465,4]
[365782814,1749910244562,-460.0,0.00022465,4]
[365782815,1749910244571,-460.0,0.00022465,4]
[365782816,1749910244581,-2958.13,0.00022465,4]
[365782817,1749910244591,-460.0,0.00022465,4]
[365782818,1749910244600,-460.0,0.00022465,4]
[365782819,1749910244610,-460.0,0.00022465,4]
[365782820,1749910244620,-1034.19,0.00022465,4]
[365782821,1749910244630,-250.0,0.00022465,4]
[365782822,1749910244639,-460.0,0.00022465,4]
[365782823,1749910244649,-460.0,0.00022465,4]
[365782824,1749910244659,-608.47,0.00022465,4]
[365782825,1749910244668,-460.0,0.00022465,4]
[365782826,1749910244678,-460.0,0.00022465,4]
[365782827,1749910244687,-460.0,0.00022465,4]
[365782828,1749910244697,-460.0,0.00022465,4]
[365782829,1749910244707,-460.0,0.00022465,4]
[365782830,1749910244716,-460.0,0.00022465,4]
[365782831,1749910244727,-460.0,0.00022465,4]
[365782832,1749910244736,-460.0,0.00022465,4]
[365782833,1749910244745,-460.0,0.00022465,4]
[365782834,1749910244758,-360.0,0.00022465,4]
[365782835,1749910244767,-460.0,0.00022465,4]
[365782836,1749910244777,-460.0,0.00022465,4]
[365782837,1749910244786,-460.0,0.00022465,4]
[365782838,1749910244796,-561.83,0.00022465,4]
[365782839,1749910244807,-460.0,0.00022465,4]
[365782840,1749910244816,-460.0,0.00022465,4]
[365782841,1749910244826,-460.0,0.00022465,4]
[365782842,1749910244837,-460.0,0.00022465,4]
[365782843,1749910244846,-2807.41,0.00022465,4]
[365782844,1749910244855,-460.0,0.00022465,4]
[365782845,1749910244865,-460.0,0.00022465,4]
[365782846,1749910244874,-460.0,0.00022465,4]
[365782847,1749910244883,-868.83,0.00022465,4]
[365782848,1749910244892,-159.53405183,0.00022465,4]
[365782849,1749910244902,-460.0,0.00022465,4]
[365782850,1749910244912,-460.0,0.00022465,4]
[365782851,1749910244922,-460.0,0.00022465,4]
[365782852,1749910244931,-460.0,0.00022465,4]
[365782853,1749910244941,-460.0,0.00022465,4]
[365782854,1749910244950,-2467.04,0.00022465,4]
[365782855,1749910244959,-460.0,0.00022465,4]
[365782856,1749910244969,-460.0,0.00022465,4]
[365782857,1749910244979,-1226.2,0.00022465,4]
[365782858,1749910244988,-460.0,0.00022465,4]
[365782859,1749910244998,-460.0,0.00022465,4]
[365782860,1749910245007,-2106.91,0.00022465,4]
[365782861,1749910245017,-460.0,0.00022465,4]
[365782862,1749910245026,-460.0,0.00022465,4]
[365782863,1749910245035,-460.0,0.00022465,4]
[365782864,1749910245045,-460.0,0.00022465,4]
[365782865,1749910245056,-460.0,0.00022465,4]
[365782866,1749910245065,-460.0,0.00022465,4]
[365782867,1749910245074,-477.79,0.00022465,4]
[365782868,1749910245084,-1996.77,0.00022465,4]
[365782869,1749910245093,-185.23495465,0.00022465,4]
[365782870,1749910245103,-460.0,0.00022465,4]
[365782871,1749910245113,-460.0,0.00022465,4]
[365782872,1749910245122,-3628.01,0.00022465,4]
[365782873,1749910245131,-460.0,0.00022465,4]
[365782874,1749910245141,-460.0,0.00022465,2]
[365782875,1749910245151,-460.0,0.00022465,4]
[365782876,1749910245161,-460.0,0.00022465,4]
[365782877,1749910245170,-460.0,0.00022465,4]
[365782878,1749910245181,-3294.11,0.00022465,4]
[365782879,1749910245190,-460.0,0.00022465,4]
[365782880,1749910245200,-700.42,0.00022465,4]
[365782881,1749910245210,-1234.47,0.00022465,4]
[365782882,1749910245220,-460.0,0.00022465,4]
[365782883,1749910245229,-460.0,0.00022465,4]
[365782884,1749910245239,-615.07,0.00022465,4]
[365782885,1749910245249,-460.0,0.00022465,4]
[365782886,1749910245259,-460.0,0.00022465,4]
[365782887,1749910245268,-980.96,0.00022465,4]
[365782888,1749910245278,-460.0,0.00022465,4]
[365782889,1749910245287,-460.0,0.00022465,4]
[365782890,1749910245297,-460.0,0.00022465,4]
[365782891,1749910245306,-1829.51,0.00022465,4]
[365782892,1749910245316,-400.0,0.00022465,4]
[365782893,1749910245325,-460.0,0.00022465,4]
[365782894,1749910245334,-460.0,0.00022465,4]
[365782895,1749910245344,-1467.6,0.00022465,4]
[365782896,1749910245355,-400.0,0.00022465,4]
[365782897,1749910245365,-2528.24,0.00022465,4]
[365782898,1749910245374,-460.0,0.00022465,4]
[365782899,1749910245384,-460.0,0.00022465,4]
[365782900,1749910245394,-460.0,0.00022465,4]
[365782901,1749910245407,-460.0,0.00022465,4]
[365782902,1749910245415,-460.0,0.00022465,4]
[365782903,1749910245425,-1000.0,0.00022521,2]
[365782904,1749910245435,-529.83501143,0.00022521,7]
[365782905,1749910245445,-529.83501143,0.00022624,7]
[365782906,1749910245455,-151.24666928,0.00022685,4]
[365782907,1749910245464,-500.0,0.00022685,4]
[365782908,1749910245475,-151.0,0.00022685,2]
[365782909,1749910245485,-151.0,0.00022685,4]
[365782910,1749910245495,-1561.81895775,0.00022709,2]
[365782911,1749910245505,-500.0,0.00022712,4]
[365782912,1749910245515,-1000.0,0.00022721,2]
[365782913,1749910245525,-1000.0,0.00022721,2]
[365782914,1749910245534,-529.83501143,0.00022728,7]
[365782915,1749910245544,-160.0,0.00022737,2]
[365782916,1749910245553,-460.0,0.00022739,4]
[365782917,1749910245563,-460.0,0.00022739,4]
[365782918,1749910245574,-460.0,0.00022739,4]
[365782919,1749910245584,-240.0,0.00022739,4]
[365782920,1749910245594,-460.0,0.00022739,4]
[365782921,1749910245604,-984.78,0.00022739,4]
[365782922,1749910245613,-460.0,0.00022739,4]
[365782923,1749910245622,-460.0,0.00022739,4]
[365782924,1749910245633,-460.0,0.00022739,4]
[365782925,1749910245642,-460.0,0.00022739,4]
[365782926,1749910245652,-290.0,0.00022739,4]
[365782927,1749910245662,-460.0,0.00022739,4]
[365782928,1749910245672,-363.30660537,0.00022739,4]
[365782929,1749910245682,-460.0,0.00022739,4]
[365782930,1749910245692,-460.0,0.00022739,4]
[365782931,1749910245701,-460.0,0.00022739,4]
[365782932,1749910245711,-425.92,0.00022739,4]
[365782933,1749910245721,-460.0,0.00022739,4]
[365782934,1749910245731,-460.0,0.00022739,4]
[365782935,1749910245741,-460.0,0.00022739,4]
[365782936,1749910245750,-460.0,0.00022739,4]
[365782937,1749910245764,-719.31,0.00022739,4]
[365782938,1749910245774,-501.65472452,0.00022739,4]
[365782939,1749910245784,-460.0,0.00022739,4]
[365782941,1749910245793,-2958.13,0.00022739,4]
[365782942,1749910245805,-460.0,0.00022739,4]
[365782943,1749910245815,-460.0,0.00022739,4]
[365782944,1749910245825,-460.0,0.00022739,4]
[365782945,1749910245838,-1034.19,0.00022739,4]
[365782946,1749910245848,-519.44891595,0.00022739,4]
[365782947,1749910245857,-460.0,0.00022739,4]
[365782948,1749910245867,-608.47,0.00022739,4]
[365782949,1749910245877,-460.0,0.00022739,4]
[365782950,1749910245887,-460.0,0.00022739,4]
[365782951,1749910245896,-460.0,0.00022739,4]
[365782953,1749910245906,-220.0,0.00022739,4]
[365782954,1749910245915,-460.0,0.00022739,4]
[365782955,1749910245925,-460.0,0.00022739,4]
[365782956,1749910245934,-460.0,0.00022739,4]
[365782957,1749910245943,-460.0,0.00022739,4]
[365782958,1749910245953,-460.0,0.00022739,4]
[365782959,1749910245963,-460.0,0.00022739,4]
[365782961,1749910245972,-460.0,0.00022739,4]
[365782962,1749910245982,-460.0,0.00022739,4]
[365782963,1749910245991,-561.83,0.00022739,4]
[365782964,1749910246003,-460.0,0.00022739,4]
[365782965,1749910246012,-460.0,0.00022739,4]
[365782966,1749910246021,-460.0,0.00022739,4]
[365782967,1749910246031,-460.0,0.00022739,4]
[365782968,1749910246040,-2807.41,0.00022739,4]
[365782969,1749910246050,-460.0,0.00022739,4]
[365782970,1749910246059,-320.0,0.00022739,4]
[365782971,1749910246069,-460.0,0.00022739,4]
[365782972,1749910246079,-868.83,0.00022739,4]
[365782974,1749910246089,-460.0,0.00022739,4]
[365782975,1749910246098,-460.0,0.00022739,4]
[365782976,1749910246108,-460.0,0.00022739,4]
[365782977,1749910246117,-460.0,0.00022739,4]
[365782978,1749910246127,-2467.04,0.00022739,4]
[365782979,1749910246136,-460.0,0.00022739,4]
[365782980,1749910246145,-460.0,0.00022739,4]
[365782981,1749910246155,-1226.2,0.00022739,4]
[365782982,1749910246164,-460.0,0.00022739,4]
[365782983,1749910246174,-2106.91,0.00022739,4]
[365782984,1749910246183,-460.0,0.00022739,4]
[365782985,1749910246192,-460.0,0.00022739,4]
[365782986,1749910246202,-460.0,0.00022739,4]
[365782987,1749910246211,-310.0,0.00022739,4]
[365782988,1749910246221,-460.0,0.00022739,4]
[365782989,1749910246230,-460.0,0.00022739,4]
[365782990,1749910246239,-477.79,0.00022739,4]
[365782991,1749910246248,-1996.77,0.00022739,4]
[365782992,1749910246258,-460.0,0.00022739,4]
[365782993,1749910246268,-460.0,0.00022739,4]
[365782994,1749910246277,-3628.01,0.00022739,4]
[365782995,1749910246287,-460.0,0.00022739,4]
[365782996,1749910246297,-460.0,0.00022739,2]
[365782997,1749910246307,-460.0,0.00022739,4]
[365782998,1749910246316,-460.0,0.00022739,4]
[365782999,1749910246326,-460.0,0.00022739,4]
[365783000,1749910246339,-3294.11,0.00022739,4]
[365783001,1749910246349,-460.0,0.00022739,4]
[365783002,1749910246358,-700.42,0.00022739,4]
[365783003,1749910246368,-1234.47,0.00022739,4]
[365783004,1749910246378,-460.0,0.00022739,4]
[365783005,1749910246387,-460.0,0.00022739,4]
[365783006,1749910246396,-615.07,0.00022739,4]
[365783007,1749910246406,-340.0,0.00022739,4]
[365783008,1749910246415,-460.0,0.00022739,4]
[365783009,1749910246425,-980.96,0.00022739,4]
[365783010,1749910246434,-460.0,0.00022739,4]
[365783011,1749910246444,-460.0,0.00022739,4]
[365783012,1749910246453,-460.0,0.00022739,4]
[365783013,1749910246463,-1829.51,0.00022739,4]
[365783014,1749910246473,-460.0,0.00022739,4]
[365783015,1749910246483,-460.0,0.00022739,4]
[365783016,1749910246493,-1467.6,0.00022739,4]
[365783017,1749910246502,-2528.24,0.00022739,4]
[365783018,1749910246511,-460.0,0.00022739,4]
[365783019,1749910246521,-460.0,0.00022739,4]
[365783020,1749910246530,-460.0,0.00022739,4]
[365783021,1749910246539,-460.0,0.00022739,4]
[365783022,1749910246549,-460.0,0.00022739,4]
[365783023,1749910246558,-500.0,0.0002274,4]
[365783024,1749910246567,-365.0,0.00022754,7]
[365783025,1749910246577,-160.0,0.00022758,2]
[365783026,1749910246586,-160.0,0.00022758,2]
[365783027,1749910246596,-835.41710878,0.00022758,2]
[365783028,1749910246605,-160.0,0.00022758,2]
[365783029,1749910246614,-160.0,0.00022763,2]
[365783030,1749910246624,-12533.30537164,0.00022763,2]
[365783031,1749910246634,-585.79185354,0.00022767,4]
[365783032,1749910246643,-505.40217074,0.00022781,2]
[365783033,1749910246652,-365.0,0.00022803,2]
[365783034,1749910246661,-529.83501143,0.00022831,8]
[365783035,1749910246767,-1419.84138506,0.0002288,2]
[365783036,1749910246776,-420.0,0.00022902,2]
[365783037,1749910246786,-529.83501143,0.00022934,8]
[365783038,1749910246796,-13587.0,0.00023,5]
[365783039,1749910246806,-200.0,0.00023,2]
[365783040,1749910246815,-532.40493754,0.00023013,4]
[365783041,1749910246824,-460.0,0.00023013,4]
[365783042,1749910246834,-460.0,0.00023013,4]
[365783043,1749910246844,-460.0,0.00023013,4]
[365783044,1749910246853,-984.78,0.00023013,4]
[365783045,1749910246862,-156.63861384,0.00023013,4]
[365783046,1749910246871,-460.0,0.00023013,4]
[365783047,1749910246882,-460.0,0.00023013,4]
[365783048,1749910246891,-460.0,0.00023013,4]
[365783049,1749910246900,-460.0,0.00023013,4]
[365783050,1749910246910,-460.0,0.00023013,4]
[365783051,1749910246919,-190.0,0.00023013,4]
[365783052,1749910246929,-220.0,0.00023013,4]
[365783053,1749910246938,-412.07185193,0.00023013,4]
[365783054,1749910246948,-460.0,0.00023013,4]
[365783055,1749910246958,-460.0,0.00023013,4]
[365783056,1749910246968,-460.0,0.00023013,4]
[365783057,1749910246978,-719.31,0.00023013,4]
[365783058,1749910246988,-460.0,0.00023013,4]
[365783059,1749910246998,-2958.13,0.00023013,4]
[365783060,1749910247007,-460.0,0.00023013,4]
[365783061,1749910247017,-406.64779514,0.00023013,4]
[365783062,1749910247026,-460.0,0.00023013,4]
[365783063,1749910247036,-1034.19,0.00023013,4]
[365783064,1749910247046,-460.0,0.00023013,4]
[365783065,1749910247055,-608.47,0.00023013,4]
[365783066,1749910247065,-460.0,0.00023013,4]
[365783067,1749910247074,-460.0,0.00023013,4]
[365783068,1749910247084,-460.0,0.00023013,4]
[365783069,1749910247099,-460.0,0.00023013,4]
[365783070,1749910247108,-460.0,0.00023013,4]
[365783071,1749910247118,-460.0,0.00023013,4]
[365783072,1749910247128,-460.0,0.00023013,4]
[365783073,1749910247137,-460.0,0.00023013,4]
[365783074,1749910247147,-460.0,0.00023013,4]
[365783075,1749910247156,-460.0,0.00023013,4]
[365783076,1749910247166,-460.0,0.00023013,4]
[365783077,1749910247175,-561.83,0.00023013,4]
[365783078,1749910247185,-175.55794282,0.00023013,4]
[365783079,1749910247196,-460.0,0.00023013,4]
[365783080,1749910247206,-460.0,0.00023013,4]
[365783081,1749910247216,-460.0,0.00023013,4]
[365783082,1749910247226,-2807.41,0.00023013,4]
[365783083,1749910247236,-460.0,0.00023013,4]
[365783084,1749910247246,-460.0,0.00023013,4]
[365783085,1749910247256,-868.83,0.00023013,4]
[365783086,1749910247267,-460.0,0.00023013,4]
[365783087,1749910247277,-460.0,0.00023013,4]
[365783088,1749910247286,-460.0,0.00023013,4]
[365783089,1749910247296,-460.0,0.00023013,4]
[365783090,1749910247306,-2467.04,0.00023013,4]
[365783091,1749910247315,-460.0,0.00023013,4]
[365783092,1749910247325,-460.0,0.00023013,4]
[365783093,1749910247334,-1226.2,0.00023013,4]
[365783094,1749910247344,-460.0,0.00023013,4]
[365783095,1749910247354,-2106.91,0.00023013,4]
[365783096,1749910247364,-314.76786021,0.00023013,4]
[365783097,1749910247373,-230.0,0.00023013,4]
[365783098,1749910247383,-460.0,0.00023013,4]
[365783099,1749910247392,-460.0,0.00023013,4]
[365783100,1749910247402,-460.0,0.00023013,4]
[365783101,1749910247412,-477.79,0.00023013,4]
[365783102,1749910247421,-1996.77,0.00023013,4]
[365783103,1749910247431,-460.0,0.00023013,4]
[365783104,1749910247440,-460.0,0.00023013,4]
[365783105,1749910247451,-3628.01,0.00023013,4]
[365783106,1749910247461,-460.0,0.00023013,4]
[365783107,1749910247471,-460.0,0.00023013,2]
[365783108,1749910247481,-460.0,0.00023013,4]
[365783109,1749910247490,-460.0,0.00023013,4]
[365783110,1749910247500,-460.0,0.00023013,4]
[365783111,1749910247510,-3294.11,0.00023013,4]
[365783112,1749910247519,-460.0,0.00023013,4]
[365783113,1749910247529,-700.42,0.00023013,4]
[365783114,1749910247538,-460.0,0.00023013,4]
[365783115,1749910247548,-460.0,0.00023013,4]
[365783116,1749910247559,-1234.47,0.00023013,4]
[365783117,1749910247569,-615.07,0.00023013,4]
[365783118,1749910247580,-460.0,0.00023013,4]
[365783119,1749910247589,-980.96,0.00023013,4]
[365783120,1749910247600,-280.0,0.00023013,4]
[365783121,1749910247611,-460.0,0.00023013,4]
[365783122,1749910247621,-460.0,0.00023013,4]
[365783123,1749910247631,-1829.51,0.00023013,4]
[365783124,1749910247645,-460.0,0.00023013,4]
[365783125,1749910247656,-460.0,0.00023013,4]
[365783126,1749910247666,-1467.6,0.00023013,4]
[365783127,1749910247676,-2528.24,0.00023013,4]
[365783128,1749910247685,-460.0,0.00023013,4]
[365783129,1749910247695,-460.0,0.00023013,4]
[365783130,1749910247704,-460.0,0.00023013,4]
[365783131,1749910247714,-460.0,0.00023013,4]
[365783132,1749910247723,-460.0,0.00023013,4]
[365783133,1749910247733,-182.0,0.00023014,7]
[365783134,1749910247742,-529.83501143,0.00023038,8]
[365783135,1749910247752,-500.0,0.0002304,2]
[365783136,1749910247764,-1008.24194417,0.00023068,2]
[365783137,1749910247773,-207.4,0.00023075,2]
[365783138,1749910247783,-529.83501143,0.00023141,8]
[365783139,1749910247792,-1561.81895775,0.00023154,2]
[365783140,1749910247802,-800.0,0.00023238,2]
[365783141,1749910247813,-529.83501143,0.00023245,8]
[365783142,1749910247822,-1500.0,0.00023268,2]
[365783143,1749910247832,-1500.0,0.00023268,2]
[365783144,1749910247841,-649.8,0.00023277,3]
[365783145,1749910247851,-324.9,0.00023277,3]
[365783146,1749910247860,-160.0,0.00023286,2]
[365783147,1749910247869,-460.0,0.00023287,4]
[365783148,1749910247879,-460.0,0.00023287,4]
[365783149,1749910247888,-460.0,0.00023287,4]
[365783150,1749910247897,-984.78,0.00023287,4]
[365783151,1749910247906,-460.0,0.00023287,4]
[365783152,1749910247916,-460.0,0.00023287,4]
[365783153,1749910247926,-460.0,0.00023287,4]
[365783154,1749910247935,-460.0,0.00023287,4]
[365783155,1749910247944,-460.0,0.00023287,4]
[365783156,1749910247953,-460.0,0.00023287,4]
[365783157,1749910247963,-460.0,0.00023287,4]
[365783158,1749910247972,-460.0,0.00023287,4]
[365783159,1749910247981,-719.31,0.00023287,4]
[365783160,1749910247990,-460.0,0.00023287,4]
[365783161,1749910247999,-2958.13,0.00023287,4]
[365783162,1749910248009,-460.0,0.00023287,4]
[365783163,1749910248018,-460.0,0.00023287,4]
[365783164,1749910248028,-1034.19,0.00023287,4]
[365783165,1749910248038,-460.0,0.00023287,4]
[365783166,1749910248048,-608.47,0.00023287,4]
[365783167,1749910248057,-460.0,0.00023287,4]
[365783168,1749910248066,-460.0,0.00023287,4]
[365783169,1749910248075,-160.0,0.00023287,4]
[365783170,1749910248084,-460.0,0.00023287,4]
[365783171,1749910248094,-460.0,0.00023287,4]
[365783172,1749910248104,-460.0,0.00023287,4]
[365783173,1749910248114,-237.63876592,0.00023287,4]
[365783174,1749910248123,-381.32453295,0.00023287,4]
[365783175,1749910248132,-460.0,0.00023287,4]
[365783176,1749910248142,-460.0,0.00023287,4]
[365783177,1749910248151,-300.0,0.00023287,4]
[365783178,1749910248162,-561.83,0.00023287,4]
[365783179,1749910248171,-460.0,0.00023287,4]
[365783180,1749910248181,-460.0,0.00023287,4]
[365783181,1749910248191,-460.0,0.00023287,4]
[365783182,1749910248203,-2807.41,0.00023287,4]
[365783183,1749910248214,-460.0,0.00023287,4]
[365783184,1749910248223,-460.0,0.00023287,4]
[365783185,1749910248233,-868.83,0.00023287,4]
[365783186,1749910248244,-460.0,0.00023287,4]
[365783187,1749910248254,-460.0,0.00023287,4]
[365783188,1749910248263,-460.0,0.00023287,4]
[365783189,1749910248273,-460.0,0.00023287,4]
[365783190,1749910248283,-2467.04,0.00023287,4]
[365783191,1749910248293,-460.0,0.00023287,4]
[365783192,1749910248303,-550.67495731,0.00023287,4]
[365783193,1749910248311,-1226.2,0.00023287,4]
[365783194,1749910248320,-460.0,0.00023287,4]
[365783195,1749910248330,-2106.91,0.00023287,4]
[365783196,1749910248339,-460.0,0.00023287,4]
[365783197,1749910248351,-460.0,0.00023287,4]
[365783198,1749910248366,-460.0,0.00023287,4]
[365783199,1749910248375,-477.79,0.00023287,4]
[365783200,1749910248384,-1996.77,0.00023287,4]
[365783201,1749910248393,-460.0,0.00023287,4]
[365783202,1749910248403,-290.0,0.00023287,4]
[365783203,1749910248412,-3628.01,0.00023287,4]
[365783204,1749910248422,-460.0,0.00023287,2]